[Event "Titled Tuesday Blitz February 28 Late 2023"]
[White "Madaminov, Mukhiddin"]
[Black "Martinez Alcantara, Jose Eduardo"]
[WhiteFideId "14210703"]
[BlackFideId "3805662"]
[WhiteElo "2511"]
[BlackElo "2712"]
[Result "0-1"]
[Round "04"]
[TimeControl "180+2"]
[Date "2023.02.28"]
[WhiteClock "0:00:01"]
[BlackClock "0:00:12"]

1. d4 {[%clk 0:03:00]}  Nf6 {[%clk 0:02:59]} 2. c4 {[%clk 0:02:59]}  e6 {[%clk 0:03:00]} 3. Nc3 {[%clk 0:02:59]}  Bb4 {[%clk 0:03:00]} 4. e3 {[%clk 0:03:00]}  O-O {[%clk 0:03:00]} 5. Bd3 {[%clk 0:02:59]}  d5 {[%clk 0:03:00]} 6. Nf3 {[%clk 0:03:00]}  dxc4 {[%clk 0:02:59]} 7. Bxc4 {[%clk 0:03:00]}  c5 {[%clk 0:03:00]} 8. O-O {[%clk 0:03:00]}  a6 {[%clk 0:03:00]} 9. Bd3 {[%clk 0:02:49]}  Nbd7 {[%clk 0:02:41]} 10. a3 {[%clk 0:02:41]}  Ba5 {[%clk 0:02:42]} 11. Rb1 {[%clk 0:02:26]}  cxd4 {[%clk 0:01:56]} 12. Nxd4 {[%clk 0:02:23]}  Bxc3 {[%clk 0:01:52]} 13. bxc3 {[%clk 0:02:23]}  Qc7 {[%clk 0:01:53]} 14. c4 {[%clk 0:01:58]}  Nc5 {[%clk 0:01:51]} 15. Bc2 {[%clk 0:01:50]}  e5 {[%clk 0:01:45]} 16. Nb3 {[%clk 0:01:36]}  Na4 {[%clk 0:01:34]} 17. Bd2 {[%clk 0:01:35]}  Be6 {[%clk 0:01:29]} 18. Na5 {[%clk 0:01:14]}  Nc5 {[%clk 0:01:28]} 19. Bb4 {[%clk 0:01:14]}  b6 {[%clk 0:01:18]} 20. Nb3 {[%clk 0:00:46]}  Bxc4 {[%clk 0:01:15]} 21. Re1 {[%clk 0:00:36]}  Rfd8 {[%clk 0:01:15]} 22. Qc1 {[%clk 0:00:34]}  Bxb3 {[%clk 0:01:01]} 23. Bxb3 {[%clk 0:00:26]}  Rac8 {[%clk 0:01:01]} 24. Bc4 {[%clk 0:00:23]}  a5 {[%clk 0:00:59]} 25. Bxc5 {[%clk 0:00:11]}  Qxc5 {[%clk 0:01:00]} 26. Ba6 {[%clk 0:00:12]}  Qxc1 {[%clk 0:00:51]} 27. Rexc1 {[%clk 0:00:11]}  Rxc1+ {[%clk 0:00:52]} 28. Rxc1 {[%clk 0:00:12]}  Ne4 {[%clk 0:00:48]} 29. g3 {[%clk 0:00:02]}  g6 {[%clk 0:00:43]} 30. Rc6 {[%clk 0:00:01]}  Rd1+ {[%clk 0:00:43]} 31. Kg2 {[%clk 0:00:02]}  Rd2 {[%clk 0:00:44]} 32. Rxb6 {[%clk 0:00:01]}  Rxf2+ {[%clk 0:00:43]} 33. Kg1 {[%clk 0:00:02]}  Ra2 {[%clk 0:00:39]} 34. Rb5 {[%clk 0:00:02]}  Ra1+ {[%clk 0:00:34]} 35. Kg2 {[%clk 0:00:02]}  Ra2+ {[%clk 0:00:35]} 36. Kg1 {[%clk 0:00:03]}  Ng5 {[%clk 0:00:31]} 37. Bb7 {[%clk 0:00:04]}  Ra1+ {[%clk 0:00:17]} 38. Kg2 {[%clk 0:00:03]}  Ra2+ {[%clk 0:00:17]} 39. Kg1 {[%clk 0:00:03]}  Nh3+ {[%clk 0:00:18]} 40. Kh1 {[%clk 0:00:04]}  Rxa3 {[%clk 0:00:18]} 41. Rxe5 {[%clk 0:00:03]}  Nf2+ {[%clk 0:00:18]} 42. Kg2 {[%clk 0:00:03]}  Ng4 {[%clk 0:00:19]} 43. Re8+ {[%clk 0:00:03]}  Kg7 {[%clk 0:00:20]} 44. h3 {[%clk 0:00:03]}  Nxe3+ {[%clk 0:00:20]} 45. Kf2 {[%clk 0:00:03]}  Nf5 {[%clk 0:00:21]} 46. Bf3 {[%clk 0:00:02]}  Ra2+ {[%clk 0:00:20]} 47. Ke1 {[%clk 0:00:01]}  Nxg3 {[%clk 0:00:19]} 48. Bd5 {[%clk 0:00:02]}  Ra4 {[%clk 0:00:15]} 49. Re7 {[%clk 0:00:02]}  Rf4 {[%clk 0:00:15]} 50. Ra7 {[%clk 0:00:02]}  a4 {[%clk 0:00:15]} 51. Bc6 {[%clk 0:00:03]}  Rf1+ {[%clk 0:00:15]} 52. Kd2 {[%clk 0:00:03]}  Rf4 {[%clk 0:00:14]} 53. Bxa4 {[%clk 0:00:03]}  Nf5 {[%clk 0:00:11]} 54. Bb3 {[%clk 0:00:03]}  Nd6 {[%clk 0:00:11]} 55. Rd7 {[%clk 0:00:03]}  Rf6 {[%clk 0:00:11]} 56. Ke3 {[%clk 0:00:02]}  Nf5+ {[%clk 0:00:11]} 57. Ke4 {[%clk 0:00:02]}  h5 {[%clk 0:00:11]} 58. Bc4 {[%clk 0:00:02]}  Nd6+ {[%clk 0:00:11]} 59. Kd5 {[%clk 0:00:02]}  Nxc4 {[%clk 0:00:11]} 60. Kxc4 {[%clk 0:00:03]}  Rf4+ {[%clk 0:00:12]} 61. Kc5 {[%clk 0:00:01]}  Rf3 {[%clk 0:00:12]} 0-1


[Site "https://www.chess.com"]

[Event "Titled Tuesday Blitz February 28 Late 2023"]
[White "Bortnyk, Olexandr"]
[Black "Hambleton, Aman"]
[WhiteFideId "14120828"]
[BlackFideId "2606577"]
[WhiteElo "2734"]
[BlackElo "2511"]
[Result "1-0"]
[Round "04"]
[TimeControl "180+2"]
[Date "2023.02.28"]
[WhiteClock "0:00:03"]
[BlackClock "0:00:01"]

1. e4 {[%clk 0:03:00]}  e6 {[%clk 0:02:55]} 2. d4 {[%clk 0:03:00]}  b6 {[%clk 0:02:54]} 3. Nc3 {[%clk 0:03:01]}  Bb7 {[%clk 0:02:54]} 4. Bd3 {[%clk 0:03:00]}  Nf6 {[%clk 0:02:48]} 5. Nf3 {[%clk 0:02:56]}  Bb4 {[%clk 0:02:48]} 6. Qe2 {[%clk 0:02:55]}  d5 {[%clk 0:02:48]} 7. e5 {[%clk 0:02:50]}  Ne4 {[%clk 0:02:47]} 8. O-O {[%clk 0:02:45]}  Nxc3 {[%clk 0:02:42]} 9. bxc3 {[%clk 0:02:46]}  Bxc3 {[%clk 0:02:42]} 10. Rb1 {[%clk 0:02:46]}  Nc6 {[%clk 0:02:42]} 11. Qe3 {[%clk 0:02:30]}  h6 {[%clk 0:02:29]} 12. Ba3 {[%clk 0:02:11]}  Qd7 {[%clk 0:02:23]} 13. Rfc1 {[%clk 0:02:02]}  a6 {[%clk 0:01:57]} 14. h4 {[%clk 0:01:42]}  Ne7 {[%clk 0:01:23]} 15. h5 {[%clk 0:01:43]}  Ba5 {[%clk 0:01:14]} 16. Qf4 {[%clk 0:01:34]}  Nf5 {[%clk 0:00:49]} 17. Bxf5 {[%clk 0:01:32]}  exf5 {[%clk 0:00:50]} 18. e6 {[%clk 0:01:33]}  fxe6 {[%clk 0:00:50]} 19. Ne5 {[%clk 0:01:32]}  Qa4 {[%clk 0:00:47]} 20. Ng6 {[%clk 0:01:25]}  O-O-O {[%clk 0:00:40]} 21. Be7 {[%clk 0:01:20]}  Rd7 {[%clk 0:00:38]} 22. Nxh8 {[%clk 0:01:19]}  Rxe7 {[%clk 0:00:37]} 23. Ng6 {[%clk 0:01:20]}  Re8 {[%clk 0:00:31]} 24. Ne5 {[%clk 0:01:14]}  b5 {[%clk 0:00:24]} 25. Nd3 {[%clk 0:01:11]}  Bb6 {[%clk 0:00:21]} 26. c3 {[%clk 0:01:10]}  Qxa2 {[%clk 0:00:15]} 27. Qg3 {[%clk 0:01:09]}  Re7 {[%clk 0:00:14]} 28. Re1 {[%clk 0:01:03]}  Kb8 {[%clk 0:00:10]} 29. Nf4 {[%clk 0:00:59]}  Bc8 {[%clk 0:00:10]} 30. Ng6 {[%clk 0:00:54]}  Re8 {[%clk 0:00:06]} 31. Ne5 {[%clk 0:00:54]}  Qd2 {[%clk 0:00:04]} 32. Re3 {[%clk 0:00:44]}  f4 {[%clk 0:00:02]} 33. Qxf4 {[%clk 0:00:43]}  Kb7 {[%clk 0:00:01]} 34. Qf7 {[%clk 0:00:42]}  Rd8 {[%clk 0:00:02]} 35. Qxg7 {[%clk 0:00:41]}  Qc2 {[%clk 0:00:02]} 36. Ra1 {[%clk 0:00:40]}  Qf5 {[%clk 0:00:02]} 37. Qxh6 {[%clk 0:00:36]}  Rg8 {[%clk 0:00:02]} 38. Rf3 {[%clk 0:00:29]}  Qc2 {[%clk 0:00:01]} 39. Kh2 {[%clk 0:00:27]}  Qb2 {[%clk 0:00:02]} 40. Qc1 {[%clk 0:00:25]}  Qb3 {[%clk 0:00:01]} 41. c4 {[%clk 0:00:23]}  Qb4 {[%clk 0:00:01]} 42. cxb5 {[%clk 0:00:20]}  Qxd4 {[%clk 0:00:02]} 43. bxa6+ {[%clk 0:00:20]}  Ka8 {[%clk 0:00:02]} 44. Qc6+ {[%clk 0:00:20]}  Ka7 {[%clk 0:00:02]} 45. Qc3 {[%clk 0:00:11]}  Qh4+ {[%clk 0:00:02]} 46. Kg1 {[%clk 0:00:10]}  Qxh5 {[%clk 0:00:01]} 47. Rb1 {[%clk 0:00:05]}  Rh8 {[%clk 0:00:02]} 48. Rh3 {[%clk 0:00:05]}  Qf5 {[%clk 0:00:01]} 49. Rxb6 {[%clk 0:00:04]}  Rxh3 {[%clk 0:00:01]} 50. Qxc7+ {[%clk 0:00:03]}  Ka8 {[%clk 0:00:01]} 51. Qb8# {[%clk 0:00:03]} 1-0


[Site "https://www.chess.com"]

[Event "Titled Tuesday Blitz February 28 Late 2023"]
[White "Svane, Rasmus"]
[Black "Pulpan, Jakub"]
[WhiteFideId "4657101"]
[BlackFideId "302759"]
[WhiteElo "2597"]
[BlackElo "2484"]
[Result "1-0"]
[Round "04"]
[TimeControl "180+2"]
[Date "2023.02.28"]
[WhiteClock "0:00:10"]
[BlackClock "0:00:01"]

1. Nf3 {[%clk 0:03:00]}  d5 {[%clk 0:02:51]} 2. g3 {[%clk 0:03:01]}  g6 {[%clk 0:02:50]} 3. Bg2 {[%clk 0:03:01]}  Bg7 {[%clk 0:02:51]} 4. d4 {[%clk 0:03:02]}  Nh6 {[%clk 0:02:43]} 5. O-O {[%clk 0:03:01]}  Nf5 {[%clk 0:02:43]} 6. c3 {[%clk 0:03:00]}  O-O {[%clk 0:02:38]} 7. Nbd2 {[%clk 0:02:59]}  Nd6 {[%clk 0:02:38]} 8. Re1 {[%clk 0:03:00]}  Nd7 {[%clk 0:02:37]} 9. e4 {[%clk 0:02:58]}  dxe4 {[%clk 0:02:37]} 10. Ng5 {[%clk 0:02:57]}  e3 {[%clk 0:02:36]} 11. Rxe3 {[%clk 0:02:42]}  e5 {[%clk 0:02:36]} 12. dxe5 {[%clk 0:02:38]}  Nxe5 {[%clk 0:02:32]} 13. Ngf3 {[%clk 0:02:36]}  Ndc4 {[%clk 0:02:05]} 14. Re1 {[%clk 0:02:20]}  Bg4 {[%clk 0:01:57]} 15. Qa4 {[%clk 0:01:58]}  Nxd2 {[%clk 0:01:26]} 16. Nxe5 {[%clk 0:01:51]}  Be6 {[%clk 0:01:06]} 17. Bxb7 {[%clk 0:01:37]}  Rb8 {[%clk 0:00:59]} 18. Bg2 {[%clk 0:01:37]}  Bd5 {[%clk 0:00:41]} 19. Nd7 {[%clk 0:01:22]}  Nf3+ {[%clk 0:00:31]} 20. Bxf3 {[%clk 0:01:21]}  Bxf3 {[%clk 0:00:30]} 21. Nxb8 {[%clk 0:01:20]}  Qxb8 {[%clk 0:00:31]} 22. Qf4 {[%clk 0:01:11]}  Ba8 {[%clk 0:00:29]} 23. f3 {[%clk 0:01:06]}  Qb7 {[%clk 0:00:28]} 24. Be3 {[%clk 0:00:55]}  h5 {[%clk 0:00:20]} 25. Re2 {[%clk 0:00:51]}  Bh6 {[%clk 0:00:15]} 26. Qe4 {[%clk 0:00:35]}  Qa6 {[%clk 0:00:07]} 27. Qc2 {[%clk 0:00:26]}  Re8 {[%clk 0:00:07]} 28. Kf2 {[%clk 0:00:20]}  Qc6 {[%clk 0:00:04]} 29. Rf1 {[%clk 0:00:10]}  Qxf3+ {[%clk 0:00:03]} 30. Ke1 {[%clk 0:00:11]}  Qg4 {[%clk 0:00:01]} 31. Bxh6 {[%clk 0:00:11]}  Be4 {[%clk 0:00:01]} 32. Qd2 {[%clk 0:00:10]} 1-0


[Site "https://www.chess.com"]

[Event "Titled Tuesday Blitz February 28 Late 2023"]
[White "Bashirli, Nail"]
[Black "Sarana, Alexey"]
[WhiteFideId "13406809"]
[BlackFideId "24133795"]
[WhiteElo "2336"]
[BlackElo "2717"]
[Result "0-1"]
[Round "04"]
[TimeControl "180+2"]
[Date "2023.02.28"]
[WhiteClock "0:00:21"]
[BlackClock "0:01:59"]

1. e4 {[%clk 0:03:00]}  c5 {[%clk 0:02:59]} 2. Nc3 {[%clk 0:02:51]}  d6 {[%clk 0:02:59]} 3. Nf3 {[%clk 0:02:51]}  Nf6 {[%clk 0:02:58]} 4. e5 {[%clk 0:02:51]}  dxe5 {[%clk 0:02:59]} 5. Nxe5 {[%clk 0:02:50]}  a6 {[%clk 0:02:59]} 6. a4 {[%clk 0:02:51]}  e6 {[%clk 0:02:54]} 7. g3 {[%clk 0:02:42]}  Qc7 {[%clk 0:02:51]} 8. Qe2 {[%clk 0:02:40]}  Nc6 {[%clk 0:02:49]} 9. Nxc6 {[%clk 0:02:38]}  Qxc6 {[%clk 0:02:50]} 10. Rg1 {[%clk 0:02:39]}  Bd7 {[%clk 0:02:46]} 11. d3 {[%clk 0:02:34]}  Be7 {[%clk 0:02:44]} 12. g4 {[%clk 0:02:26]}  Qc7 {[%clk 0:02:39]} 13. g5 {[%clk 0:02:21]}  Nd5 {[%clk 0:02:40]} 14. Nxd5 {[%clk 0:02:05]}  exd5 {[%clk 0:02:40]} 15. Bd2 {[%clk 0:02:02]}  O-O-O {[%clk 0:02:32]} 16. a5 {[%clk 0:01:57]}  Rhe8 {[%clk 0:02:31]} 17. O-O-O {[%clk 0:01:51]}  Bxg5 {[%clk 0:02:29]} 18. Be3 {[%clk 0:01:35]}  Bxe3+ {[%clk 0:02:10]} 19. fxe3 {[%clk 0:01:34]}  Qxa5 {[%clk 0:02:11]} 20. Kb1 {[%clk 0:01:34]}  g6 {[%clk 0:02:10]} 21. Qf3 {[%clk 0:01:29]}  Be6 {[%clk 0:02:09]} 22. Bg2 {[%clk 0:01:28]}  Rd6 {[%clk 0:02:10]} 23. d4 {[%clk 0:01:15]}  c4 {[%clk 0:02:05]} 24. e4 {[%clk 0:01:04]}  Rb6 {[%clk 0:02:05]} 25. exd5 {[%clk 0:00:59]}  c3 {[%clk 0:02:04]} 26. b3 {[%clk 0:00:55]}  Bf5 {[%clk 0:02:02]} 27. Rd3 {[%clk 0:00:48]}  Bxd3 {[%clk 0:02:00]} 28. Qxd3 {[%clk 0:00:48]}  Kb8 {[%clk 0:02:00]} 29. Rf1 {[%clk 0:00:40]}  Rc8 {[%clk 0:02:01]} 30. Qg3+ {[%clk 0:00:20]}  Ka7 {[%clk 0:02:00]} 31. Qe3 {[%clk 0:00:20]}  Qa3 {[%clk 0:02:00]} 32. Qc1 {[%clk 0:00:20]}  Rxb3+ {[%clk 0:01:59]} 33. cxb3 {[%clk 0:00:21]}  c2+ {[%clk 0:01:59]} 0-1


[Site "https://www.chess.com"]

[Event "Titled Tuesday Blitz February 28 Late 2023"]
[White "Salimova, Nurgyul"]
[Black "Alekseenko, Kirill"]
[WhiteFideId "2915138"]
[BlackFideId "4135539"]
[WhiteElo "2314"]
[BlackElo "2683"]
[Result "1-0"]
[Round "04"]
[TimeControl "180+2"]
[Date "2023.02.28"]
[WhiteClock "0:00:05"]
[BlackClock "0:00:04"]

1. d4 {[%clk 0:03:00]}  d5 {[%clk 0:02:59]} 2. Nf3 {[%clk 0:03:01]}  Nf6 {[%clk 0:02:57]} 3. Bf4 {[%clk 0:03:02]}  Nh5 {[%clk 0:02:55]} 4. Bc1 {[%clk 0:02:53]}  g6 {[%clk 0:02:52]} 5. c4 {[%clk 0:02:52]}  c6 {[%clk 0:02:50]} 6. Nc3 {[%clk 0:02:51]}  Bg7 {[%clk 0:02:47]} 7. cxd5 {[%clk 0:02:25]}  cxd5 {[%clk 0:02:47]} 8. Qb3 {[%clk 0:02:26]}  e6 {[%clk 0:02:32]} 9. Bg5 {[%clk 0:02:20]}  Nf6 {[%clk 0:02:22]} 10. e3 {[%clk 0:02:18]}  O-O {[%clk 0:02:22]} 11. Bd3 {[%clk 0:02:09]}  Nc6 {[%clk 0:02:20]} 12. O-O {[%clk 0:02:08]}  h6 {[%clk 0:02:21]} 13. Bh4 {[%clk 0:02:06]}  g5 {[%clk 0:02:21]} 14. Bg3 {[%clk 0:02:07]}  Nh5 {[%clk 0:02:21]} 15. Rfc1 {[%clk 0:01:52]}  Nxg3 {[%clk 0:02:11]} 16. hxg3 {[%clk 0:01:53]}  Bd7 {[%clk 0:02:11]} 17. g4 {[%clk 0:01:40]}  Qe7 {[%clk 0:02:07]} 18. Qd1 {[%clk 0:01:06]}  Rfc8 {[%clk 0:01:58]} 19. a3 {[%clk 0:00:56]}  Qd6 {[%clk 0:01:41]} 20. b4 {[%clk 0:00:46]}  Ne7 {[%clk 0:01:36]} 21. Ne2 {[%clk 0:00:34]}  a5 {[%clk 0:01:33]} 22. Qd2 {[%clk 0:00:22]}  axb4 {[%clk 0:01:30]} 23. axb4 {[%clk 0:00:23]}  Nc6 {[%clk 0:01:14]} 24. Rxa8 {[%clk 0:00:18]}  Rxa8 {[%clk 0:01:13]} 25. b5 {[%clk 0:00:16]}  Nb4 {[%clk 0:01:11]} 26. Bb1 {[%clk 0:00:16]}  Bxb5 {[%clk 0:01:08]} 27. Ng3 {[%clk 0:00:16]}  Bc4 {[%clk 0:01:02]} 28. Nh5 {[%clk 0:00:15]}  b5 {[%clk 0:00:43]} 29. Nxg7 {[%clk 0:00:15]}  Kxg7 {[%clk 0:00:42]} 30. e4 {[%clk 0:00:11]}  Qf4 {[%clk 0:00:38]} 31. Qe1 {[%clk 0:00:06]}  Ra3 {[%clk 0:00:25]} 32. Ne5 {[%clk 0:00:04]}  dxe4 {[%clk 0:00:15]} 33. g3 {[%clk 0:00:04]}  Qxc1 {[%clk 0:00:08]} 34. Qxc1 {[%clk 0:00:04]}  Bd5 {[%clk 0:00:09]} 35. Qe1 {[%clk 0:00:03]}  Nd3 {[%clk 0:00:08]} 36. Bxd3 {[%clk 0:00:03]}  exd3 {[%clk 0:00:09]} 37. f3 {[%clk 0:00:03]}  b4 {[%clk 0:00:09]} 38. Qd2 {[%clk 0:00:03]}  b3 {[%clk 0:00:09]} 39. Nxd3 {[%clk 0:00:03]}  Ra2 {[%clk 0:00:08]} 40. Qc3 {[%clk 0:00:03]}  Rc2 {[%clk 0:00:08]} 41. Qb4 {[%clk 0:00:03]}  Rc4 {[%clk 0:00:08]} 42. Qxb3 {[%clk 0:00:02]}  Rc6 {[%clk 0:00:06]} 43. Qb2 {[%clk 0:00:02]}  Ra6 {[%clk 0:00:06]} 44. Ne5 {[%clk 0:00:03]}  Ra2 {[%clk 0:00:06]} 45. Qc3 {[%clk 0:00:03]}  Ra4 {[%clk 0:00:06]} 46. Kf2 {[%clk 0:00:02]}  Kf6 {[%clk 0:00:05]} 47. Ke3 {[%clk 0:00:03]}  Ra7 {[%clk 0:00:05]} 48. f4 {[%clk 0:00:03]}  Rb7 {[%clk 0:00:05]} 49. fxg5+ {[%clk 0:00:04]}  Kxg5 {[%clk 0:00:06]} 50. Nd3 {[%clk 0:00:03]}  f6 {[%clk 0:00:06]} 51. Qd2 {[%clk 0:00:03]}  Rb3 {[%clk 0:00:06]} 52. Kf2+ {[%clk 0:00:03]}  Kxg4 {[%clk 0:00:06]} 53. Qf4+ {[%clk 0:00:04]}  Kh5 {[%clk 0:00:07]} 54. Qh4+ {[%clk 0:00:04]}  Kg6 {[%clk 0:00:08]} 55. Nf4+ {[%clk 0:00:05]}  Kf5 {[%clk 0:00:08]} 56. Nxd5 {[%clk 0:00:05]}  exd5 {[%clk 0:00:09]} 57. Qh5+ {[%clk 0:00:06]}  Ke4 {[%clk 0:00:09]} 58. Qxh6 {[%clk 0:00:06]}  Rb2+ {[%clk 0:00:10]} 59. Kg1 {[%clk 0:00:06]}  Rb1+ {[%clk 0:00:08]} 60. Kg2 {[%clk 0:00:06]}  Kxd4 {[%clk 0:00:07]} 61. Qxf6+ {[%clk 0:00:06]}  Kc5 {[%clk 0:00:07]} 62. Qe7+ {[%clk 0:00:05]}  Kc4 {[%clk 0:00:06]} 63. Qc7+ {[%clk 0:00:05]}  Kd4 {[%clk 0:00:05]} 64. Qf4+ {[%clk 0:00:05]}  Kc5 {[%clk 0:00:05]} 65. Qe3+ {[%clk 0:00:05]}  d4 {[%clk 0:00:05]} 66. Qe5+ {[%clk 0:00:06]}  Kc4 {[%clk 0:00:05]} 67. Qc7+ {[%clk 0:00:06]}  Kb3 {[%clk 0:00:05]} 68. Qb6+ {[%clk 0:00:05]}  Kc2 {[%clk 0:00:04]} 69. Qxd4 {[%clk 0:00:06]}  Rb3 {[%clk 0:00:04]} 70. Qc4+ {[%clk 0:00:05]} 1-0


[Site "https://www.chess.com"]

[Event "Titled Tuesday Blitz February 28 Late 2023"]
[White "Alexakis, Dimitris"]
[Black "Caruana, Fabiano"]
[WhiteFideId "4277023"]
[BlackFideId "2020009"]
[WhiteElo "2493"]
[BlackElo "2818"]
[Result "0-1"]
[Round "04"]
[TimeControl "180+2"]
[Date "2023.02.28"]
[WhiteClock "0:00:01"]
[BlackClock "0:00:14"]

1. e4 {[%clk 0:02:32]}  c5 {[%clk 0:02:58]} 2. Nf3 {[%clk 0:02:31]}  e6 {[%clk 0:02:57]} 3. d4 {[%clk 0:02:29]}  cxd4 {[%clk 0:02:58]} 4. Nxd4 {[%clk 0:02:28]}  Nc6 {[%clk 0:02:58]} 5. Nc3 {[%clk 0:02:21]}  a6 {[%clk 0:02:58]} 6. g3 {[%clk 0:02:05]}  Nge7 {[%clk 0:02:53]} 7. Be3 {[%clk 0:02:05]}  Nxd4 {[%clk 0:02:51]} 8. Qxd4 {[%clk 0:02:05]}  Nc6 {[%clk 0:02:52]} 9. Qd2 {[%clk 0:02:05]}  b5 {[%clk 0:02:52]} 10. Bg2 {[%clk 0:02:05]}  Bb7 {[%clk 0:02:52]} 11. O-O {[%clk 0:02:05]}  Be7 {[%clk 0:02:51]} 12. f4 {[%clk 0:02:03]}  O-O {[%clk 0:02:50]} 13. Rad1 {[%clk 0:02:04]}  d6 {[%clk 0:02:50]} 14. a4 {[%clk 0:01:52]}  b4 {[%clk 0:02:49]} 15. Ne2 {[%clk 0:01:47]}  a5 {[%clk 0:02:49]} 16. c4 {[%clk 0:01:43]}  bxc3 {[%clk 0:02:47]} 17. Nxc3 {[%clk 0:01:43]}  Qb8 {[%clk 0:02:40]} 18. Rf2 {[%clk 0:01:23]}  Nb4 {[%clk 0:02:33]} 19. f5 {[%clk 0:01:07]}  exf5 {[%clk 0:02:15]} 20. exf5 {[%clk 0:01:03]}  Bxg2 {[%clk 0:02:13]} 21. Kxg2 {[%clk 0:01:00]}  Qb7+ {[%clk 0:02:11]} 22. Kg1 {[%clk 0:00:53]}  Bf6 {[%clk 0:01:55]} 23. Bd4 {[%clk 0:00:52]}  Bxd4 {[%clk 0:01:38]} 24. Qxd4 {[%clk 0:00:53]}  Rfe8 {[%clk 0:01:14]} 25. f6 {[%clk 0:00:39]}  Re6 {[%clk 0:01:11]} 26. Qg4 {[%clk 0:00:27]}  g6 {[%clk 0:01:11]} 27. Qf4 {[%clk 0:00:15]}  Qb8 {[%clk 0:00:53]} 28. Ne4 {[%clk 0:00:13]}  Qf8 {[%clk 0:00:43]} 29. Rxd6 {[%clk 0:00:07]}  Rxd6 {[%clk 0:00:38]} 30. Qxd6 {[%clk 0:00:08]}  Qe8 {[%clk 0:00:32]} 31. Qf4 {[%clk 0:00:04]}  Rd8 {[%clk 0:00:31]} 32. Kg2 {[%clk 0:00:03]}  Nd3 {[%clk 0:00:28]} 33. Qh6 {[%clk 0:00:02]}  Qf8 {[%clk 0:00:19]} 34. Qxf8+ {[%clk 0:00:02]}  Kxf8 {[%clk 0:00:19]} 35. Re2 {[%clk 0:00:02]}  Rd4 {[%clk 0:00:15]} 36. Kf3 {[%clk 0:00:02]}  Ne5+ {[%clk 0:00:14]} 37. Kf4 {[%clk 0:00:01]}  Nc4 {[%clk 0:00:14]} 0-1


[Site "https://www.chess.com"]

[Event "Titled Tuesday Blitz February 28 Late 2023"]
[White "Fiorito, Joaquin"]
[Black "Pranav, V"]
[WhiteFideId "180173"]
[BlackFideId "25060783"]
[WhiteElo "2157"]
[BlackElo "2500"]
[Result "0-1"]
[Round "04"]
[TimeControl "180+2"]
[Date "2023.02.28"]
[WhiteClock "0:00:04"]
[BlackClock "0:00:46"]

1. d4 {[%clk 0:03:00]}  d5 {[%clk 0:02:59]} 2. Nc3 {[%clk 0:03:01]}  Nf6 {[%clk 0:02:58]} 3. Bf4 {[%clk 0:03:02]}  c5 {[%clk 0:02:57]} 4. e4 {[%clk 0:03:01]}  Nxe4 {[%clk 0:02:57]} 5. Bb5+ {[%clk 0:03:01]}  Bd7 {[%clk 0:02:51]} 6. Nxd5 {[%clk 0:03:01]}  e5 {[%clk 0:02:38]} 7. Bxd7+ {[%clk 0:02:32]}  Nxd7 {[%clk 0:02:37]} 8. dxe5 {[%clk 0:02:32]}  Nb6 {[%clk 0:02:29]} 9. Nxb6 {[%clk 0:02:23]}  Qxb6 {[%clk 0:02:30]} 10. Nf3 {[%clk 0:01:20]}  Rd8 {[%clk 0:02:21]} 11. Qe2 {[%clk 0:01:20]}  Qb4+ {[%clk 0:02:20]} 12. Nd2 {[%clk 0:00:47]}  Nxd2 {[%clk 0:02:08]} 13. Bxd2 {[%clk 0:00:48]}  Qxb2 {[%clk 0:02:08]} 14. O-O {[%clk 0:00:48]}  Be7 {[%clk 0:02:07]} 15. Rab1 {[%clk 0:00:48]}  Qxc2 {[%clk 0:02:07]} 16. Qb5+ {[%clk 0:00:48]}  Kf8 {[%clk 0:02:04]} 17. Be3 {[%clk 0:00:45]}  b6 {[%clk 0:02:03]} 18. Rfc1 {[%clk 0:00:38]}  Qf5 {[%clk 0:02:00]} 19. Rd1 {[%clk 0:00:30]}  g5 {[%clk 0:01:43]} 20. Rxd8+ {[%clk 0:00:28]}  Bxd8 {[%clk 0:01:44]} 21. Rd1 {[%clk 0:00:29]}  Kg7 {[%clk 0:01:41]} 22. h3 {[%clk 0:00:26]}  Bc7 {[%clk 0:01:33]} 23. e6 {[%clk 0:00:14]}  Qxe6 {[%clk 0:01:26]} 24. Bxg5 {[%clk 0:00:12]}  Qe5 {[%clk 0:01:26]} 25. f4 {[%clk 0:00:12]}  Qe3+ {[%clk 0:01:08]} 26. Kh1 {[%clk 0:00:13]}  Bxf4 {[%clk 0:01:04]} 27. Qb2+ {[%clk 0:00:07]}  Qe5 {[%clk 0:01:04]} 28. Qxe5+ {[%clk 0:00:01]}  Bxe5 {[%clk 0:01:03]} 29. Rd7 {[%clk 0:00:01]}  a5 {[%clk 0:00:56]} 30. Rb7 {[%clk 0:00:01]}  Rb8 {[%clk 0:00:55]} 31. Rd7 {[%clk 0:00:01]}  c4 {[%clk 0:00:55]} 32. Re7 {[%clk 0:00:01]}  Bf6 {[%clk 0:00:52]} 33. Bxf6+ {[%clk 0:00:01]}  Kxf6 {[%clk 0:00:52]} 34. Rc7 {[%clk 0:00:02]}  b5 {[%clk 0:00:53]} 35. Kg1 {[%clk 0:00:03]}  Ke5 {[%clk 0:00:50]} 36. Kf2 {[%clk 0:00:04]}  Kd4 {[%clk 0:00:49]} 37. Ke2 {[%clk 0:00:04]}  Kc3 {[%clk 0:00:49]} 38. Rxf7 {[%clk 0:00:05]}  Kb2 {[%clk 0:00:50]} 39. Rf2 {[%clk 0:00:03]}  Kxa2 {[%clk 0:00:48]} 40. Kd1+ {[%clk 0:00:04]}  Kb3 {[%clk 0:00:48]} 41. Kc1 {[%clk 0:00:04]}  c3 {[%clk 0:00:47]} 42. g4 {[%clk 0:00:04]}  Re8 {[%clk 0:00:47]} 43. Rf1 {[%clk 0:00:05]}  Re2 {[%clk 0:00:46]} 44. h4 {[%clk 0:00:04]}  Ra2 {[%clk 0:00:46]} 0-1


[Site "https://www.chess.com"]

[Event "Titled Tuesday Blitz February 28 Late 2023"]
[White "Mustafayev, Farid"]
[Black "Yoo, Christopher Woojin"]
[WhiteFideId "13408771"]
[BlackFideId "30909694"]
[WhiteElo "2317"]
[BlackElo "2519"]
[Result "0-1"]
[Round "04"]
[TimeControl "180+2"]
[Date "2023.02.28"]
[WhiteClock "0:01:59"]
[BlackClock "0:02:48"]

1. d4 {[%clk 0:02:57]}  Nf6 {[%clk 0:02:59]} 2. c4 {[%clk 0:02:57]}  e6 {[%clk 0:03:00]} 3. Nc3 {[%clk 0:02:57]}  d5 {[%clk 0:02:59]} 4. cxd5 {[%clk 0:02:57]}  exd5 {[%clk 0:03:00]} 5. Bg5 {[%clk 0:02:58]}  Bb4 {[%clk 0:03:01]} 6. e3 {[%clk 0:02:53]}  h6 {[%clk 0:03:01]} 7. Bh4 {[%clk 0:02:53]}  g5 {[%clk 0:03:01]} 8. Bg3 {[%clk 0:02:53]}  Ne4 {[%clk 0:03:01]} 9. Qc2 {[%clk 0:02:54]}  h5 {[%clk 0:03:00]} 10. Bd3 {[%clk 0:02:04]}  h4 {[%clk 0:02:53]} 11. Bxe4 {[%clk 0:02:05]}  hxg3 {[%clk 0:02:50]} 12. Bd3 {[%clk 0:01:59]}  Rxh2 {[%clk 0:02:48]} 0-1


[Site "https://www.chess.com"]